[Event "MČR družstev mladších žáků 2024"]
[Site "Harrachov, Czech Republic"]
[Date "2024.06.15"]
[Round "3.13"]
[White "Vanek Martin"]
[Black "Policar Martin"]
[Result "1/2-1/2"]
[TimeControl "25+10"]
[WhiteFideId "23769238"]
[BlackFideId "23734868"]
[WhiteElo "1580"]
[BlackElo "1646"]

1. d4 {[%clk 00:25:18]} {[%emt 00:00:01]} Nf6 {[%clk 00:25:15]} {[%emt
00:00:05]} 2. c4 {[%clk 00:25:26]} {[%emt 00:00:02]} g6 {[%clk 00:25:23]}
{[%emt 00:00:03]} 3. Nc3 {[%clk 00:25:30]} {[%emt 00:00:05]} d5 {[%clk
00:25:30]} {[%emt 00:00:03]} 4. cxd5 {[%clk 00:25:24]} {[%emt 00:00:17]} Nxd5
{[%clk 00:25:38]} {[%emt 00:00:02]} 5. e4 {[%clk 00:25:30]} {[%emt 00:00:04]}
Nxc3 {[%clk 00:25:46]} {[%emt 00:00:02]} 6. bxc3 {[%clk 00:25:36]} {[%emt
00:00:03]} Bg7 {[%clk 00:25:54]} {[%emt 00:00:02]} 7. Nf3 {[%clk 00:25:35]}
{[%emt 00:00:11]} O-O {[%clk 00:26:00]} {[%emt 00:00:04]} 8. Bc4 {[%clk
00:25:04]} {[%emt 00:00:41]} c5 {[%clk 00:25:56]} {[%emt 00:00:14]} 9. O-O
{[%clk 00:24:38]} {[%emt 00:00:36]} Nc6 {[%clk 00:26:01]} {[%emt 00:00:06]} 10.
Bb2 {[%clk 00:21:45]} {[%emt 00:03:02]} Bg4 {[%clk 00:25:01]} {[%emt 00:01:09]}
11. e5 {[%clk 00:20:25]} {[%emt 00:01:31]} cxd4 {[%clk 00:24:24]} {[%emt
00:00:47]} 12. cxd4 {[%clk 00:20:24]} {[%emt 00:00:11]} Bxf3 {[%clk 00:24:31]}
{[%emt 00:00:03]} 13. gxf3 {[%clk 00:19:46]} {[%emt 00:00:48]} e6 {[%clk
00:23:22]} {[%emt 00:01:20]} 14. Qd2 {[%clk 00:18:45]} {[%emt 00:01:10]} Nxe5
{[%clk 00:23:11]} {[%emt 00:00:21]} 15. Qe2 {[%clk 00:17:59]} {[%emt 00:00:56]}
Nxc4 {[%clk 00:22:18]} {[%emt 00:01:03]} 16. Qxc4 {[%clk 00:18:05]} {[%emt
00:00:04]} Rc8 {[%clk 00:22:22]} {[%emt 00:00:06]} 17. Qd3 {[%clk 00:18:08]}
{[%emt 00:00:07]} e5 {[%clk 00:22:11]} {[%emt 00:00:22]} 18. Rfd1 {[%clk
00:17:02]} {[%emt 00:01:16]} Qg5+ {[%clk 00:21:36]} {[%emt 00:00:45]} 19. Kh1
{[%clk 00:16:37]} {[%emt 00:00:34]} exd4 {[%clk 00:21:35]} {[%emt 00:00:12]} 20.
Bxd4 {[%clk 00:14:59]} {[%emt 00:01:48]} Rfd8 {[%clk 00:21:24]} {[%emt
00:00:21]} 21. Qe4 {[%clk 00:13:10]} {[%emt 00:00:35]} Bxd4 {[%clk 00:21:04]}
{[%emt 00:01:54]} 22. Rxd4 {[%clk 00:13:18]} {[%emt 00:00:02]} Re8 {[%clk
00:20:54]} {[%emt 00:00:19]} 23. Qxb7 {[%clk 00:12:01]} {[%emt 00:01:28]} Qf6
{[%clk 00:18:01]} {[%emt 00:03:02]} 24. Rdd1 {[%clk 00:10:32]} {[%emt
00:01:39]} Rc3 {[%clk 00:17:15]} {[%emt 00:00:55]} 25. Qxa7 {[%clk 00:08:32]}
{[%emt 00:02:12]} Rxf3 {[%clk 00:15:32]} {[%emt 00:01:53]} 26. Kg2 {[%clk
00:07:58]} {[%emt 00:00:43]} Qf5 {[%clk 00:14:01]} {[%emt 00:01:41]} 27. a4
{[%clk 00:05:39]} {[%emt 00:02:30]} Qg4+ {[%clk 00:13:31]} {[%emt 00:00:39]} 28.
Kf1 {[%clk 00:05:11]} {[%emt 00:00:37]} Qc4+ {[%clk 00:12:46]} {[%emt
00:00:55]} 29. Kg1 {[%clk 00:04:51]} {[%emt 00:00:30]} Rf5 {[%clk 00:12:09]}
{[%emt 00:00:46]} 30. Qb7 {[%clk 00:03:45]} {[%emt 00:01:17]} Qc5 {[%clk
00:10:27]} {[%emt 00:01:52]} 31. Rf1 {[%clk 00:02:47]} {[%emt 00:01:07]} Qd4
{[%clk 00:09:32]} {[%emt 00:01:06]} 32. a5 {[%clk 00:02:38]} {[%emt 00:00:19]}
Rxf2 {[%clk 00:08:35]} {[%emt 00:01:07]} 33. Rxf2 {[%clk 00:02:37]} {[%emt
00:00:11]} Qxa1+ {[%clk 00:08:42]} {[%emt 00:00:03]} 34. Rf1 {[%clk 00:02:40]}
{[%emt 00:00:07]} Qd4+ {[%clk 00:08:46]} {[%emt 00:00:06]} 35. Kh1 {[%clk
00:02:38]} {[%emt 00:00:12]} Qc4 {[%clk 00:08:25]} {[%emt 00:00:31]} 36. Kg1
{[%clk 00:02:00]} {[%emt 00:00:48]} Qg4+ {[%clk 00:07:33]} {[%emt 00:01:02]} 37.
Kh1 {[%clk 00:01:59]} {[%emt 00:00:11]} Qe4+ {[%clk 00:07:13]} {[%emt
00:00:30]} 38. Qxe4 {[%clk 00:02:07]} {[%emt 00:00:03]} Rxe4 {[%clk 00:07:21]}
{[%emt 00:00:02]} 39. Ra1 {[%clk 00:02:08]} {[%emt 00:00:09]} Re7 {[%clk
00:07:14]} {[%emt 00:00:17]} 40. Kg2 {[%clk 00:02:00]} {[%emt 00:00:17]} Kf8
{[%clk 00:07:04]} {[%emt 00:00:21]} 41. Kg3 {[%clk 00:02:07]} {[%emt 00:00:03]}
Ke8 {[%clk 00:06:34]} {[%emt 00:00:39]} 42. Kg4 {[%clk 00:02:15]} {[%emt
00:00:01]} h6 {[%clk 00:06:31]} {[%emt 00:00:14]} 43. Kf4 {[%clk 00:02:10]}
{[%emt 00:00:15]} Kd8 {[%clk 04:05:05]} {[%emt 00:00:15]} 44. a6 {[%clk
00:02:13]} {[%emt 00:00:07]} Ra7 {[%clk 00:06:33]} {[%emt 00:00:03]} 45. Ke5
{[%clk 00:02:19]} {[%emt 00:00:04]} Ke7 {[%clk 00:06:41]} {[%emt 00:00:02]} 46.
Kd5 {[%clk 00:02:05]} {[%emt 00:00:24]} Kd7 {[%clk 00:06:24]} {[%emt 00:00:27]}
47. Ke5 {[%clk 00:02:04]} {[%emt 00:00:11]} h5 {[%clk 00:05:43]} {[%emt
00:00:51]} 48. Kf6 {[%clk 00:02:08]} {[%emt 00:00:06]} Kc6 {[%clk 00:05:49]}
{[%emt 00:00:04]} 49. h3 {[%clk 00:01:30]} {[%emt 00:00:48]} Kd5 {[%clk
00:05:49]} {[%emt 00:00:11]} 50. Rd1+ {[%clk 00:01:14]} {[%emt 00:00:25]} Ke4
{[%clk 00:05:56]} {[%emt 00:00:03]} 51. Ra1 {[%clk 00:00:57]} {[%emt 00:00:27]}
Kf4 {[%clk 00:05:07]} {[%emt 00:00:59]} 52. Ra4+ {[%clk 00:01:06]} {[%emt
00:00:01]} Ke3 {[%clk 00:05:16]} {[%emt 00:00:01]} 53. Ke5 {[%clk 00:01:09]}
{[%emt 00:00:06]} Kd3 {[%clk 00:05:05]} {[%emt 00:00:21]} 54. Kd5 {[%clk
00:01:01]} {[%emt 00:00:18]} Kc3 {[%clk 00:05:11]} {[%emt 00:00:04]} 55. Kc5
{[%clk 00:01:03]} {[%emt 00:00:08]} f5 {[%clk 00:05:08]} {[%emt 00:00:13]} 56.
Kb6 {[%clk 00:00:56]} {[%emt 00:00:18]} Ra8 {[%clk 00:05:15]} {[%emt 00:00:03]}
57. a7 {[%clk 00:00:58]} {[%emt 00:00:08]} g5 {[%clk 00:05:23]} {[%emt
00:00:03]} 58. Kb7 {[%clk 00:01:06]} {[%emt 00:00:02]} Rxa7+ {[%clk 00:05:32]}
{[%emt 00:00:01]} 59. Kxa7 {[%clk 00:01:08]} {[%emt 00:00:08]} Kd3 {[%clk
00:05:18]} {[%emt 00:00:23]} 60. Ra5 {[%clk 00:00:58]} {[%emt 00:00:20]} Ke4
{[%clk 00:05:18]} {[%emt 00:00:11]} 61. Ra4+ {[%clk 00:01:01]} {[%emt
00:00:06]} Kf3 {[%clk 00:05:25]} {[%emt 00:00:02]} 62. Ra5 {[%clk 00:01:07]}
{[%emt 00:00:05]} Kf4 {[%clk 00:05:34]} {[%emt 00:00:01]} 63. Ra4+ {[%clk
00:01:09]} {[%emt 00:00:08]} Kg3 {[%clk 00:05:42]} {[%emt 00:00:02]} 64. Ra3+
{[%clk 00:01:13]} {[%emt 00:00:06]} Kh4 {[%clk 00:05:49]} {[%emt 00:00:03]} 65.
Rf3 {[%clk 00:00:50]} {[%emt 00:00:32]} g4 {[%clk 00:05:48]} {[%emt 00:00:11]}
66. Rxf5 {[%clk 00:00:36]} {[%emt 00:00:24]} gxh3 {[%clk 00:05:56]} {[%emt
00:00:02]} 67. Rf2 {[%clk 00:00:32]} {[%emt 00:00:14]} Kg3 {[%clk 00:06:05]}
{[%emt 00:00:02]} 68. Rf5 {[%clk 00:00:40]} h4 {[%clk 00:06:13]} {[%emt
00:00:02]} 69. Rb5 {[%clk 00:00:45]} {[%emt 00:00:05]} h2 {[%clk 00:06:20]}
{[%emt 00:00:03]} 70. Rb3+ {[%clk 00:00:51]} {[%emt 00:00:04]} Kg2 {[%clk
00:06:27]} {[%emt 00:00:03]} 71. Rb2+ {[%clk 00:01:00]} {[%emt 00:00:01]} Kg3
{[%clk 00:06:33]} {[%emt 00:00:04]} 72. Rb3+ {[%clk 00:01:09]} {[%emt
00:00:01]} Kg4 {[%clk 00:06:30]} {[%emt 00:00:13]} 73. Rb1 {[%clk 00:01:16]}
{[%emt 00:00:03]} h3 {[%clk 00:06:21]} {[%emt 00:00:19]} 74. Rb4+ {[%clk
00:01:21]} {[%emt 00:00:05]} Kf5 {[%clk 00:06:27]} {[%emt 00:00:05]} 75. Rb5+
{[%clk 00:01:27]} {[%emt 00:00:04]} Ke4 {[%clk 00:06:33]} {[%emt 00:00:04]} 76.
Rb4+ {[%clk 00:01:34]} {[%emt 00:00:03]} Ke5 {[%clk 00:06:15]} {[%emt
00:00:28]} 77. Rb5+ {[%clk 00:01:39]} {[%emt 00:00:05]} Kd4 {[%clk 00:06:17]}
{[%emt 00:00:07]} 78. Rb1 {[%clk 00:01:46]} {[%emt 00:00:04]} Ke3 {[%clk
00:06:26]} {[%emt 00:00:01]} 79. Rh1 {[%clk 00:01:51]} {[%emt 00:00:05]} Kf3
{[%clk 00:06:35]} {[%emt 00:00:01]} 80. Rxh2 {[%clk 00:01:58]} {[%emt
00:00:04]} Kg3 {[%clk 00:06:44]} {[%emt 00:00:01]} 81. Rb2 {[%clk 00:02:01]}
{[%emt 00:00:05]} h2 {[%clk 00:06:52]} {[%emt 00:00:03]} 82. Rb3+ {[%clk
00:02:07]} {[%emt 00:00:04]} Kg4 {[%clk 00:06:32]} {[%emt 00:00:30]} 83. Rb4+
{[%clk 00:02:10]} {[%emt 00:00:08]} Kf3 {[%clk 00:06:30]} {[%emt 00:00:12]} 84.
Rb3+ {[%clk 00:02:08]} {[%emt 00:00:11]} Kg2 {[%clk 00:06:37]} {[%emt
00:00:03]} 85. Rb2+ {[%clk 00:02:17]} {[%emt 00:00:01]} Kg3 {[%clk 00:06:46]}
{[%emt 00:00:01]} 86. Rb3+ {[%clk 00:02:20]} {[%emt 00:00:07]} 1/2-1/2



[ePGN "0.1;DGT LiveChess/2.2.6"]

[Event "MČR družstev mladších žáků 2024"]
[Site "Harrachov, Czech Republic"]
[Date "2024.06.15"]
[Round "3.14"]
[White "Sudrich Radek"]
[Black "Bilek Filip"]
[Result "0-1"]
[TimeControl "25+10"]
[WhiteFideId "23734361"]
[BlackFideId "23763493"]
[WhiteElo "1470"]
[BlackElo "1249"]

1. e4 {[%clk 00:25:19]} {[%emt 00:00:01]} c5 {[%clk 00:25:18]} {[%emt
00:00:02]} 2. Nf3 {[%clk 00:25:27]} {[%emt 00:00:02]} e6 {[%clk 00:25:26]}
{[%emt 00:00:02]} 3. d4 {[%clk 00:25:35]} {[%emt 00:00:03]} cxd4 {[%clk
00:25:34]} {[%emt 00:00:02]} 4. Nxd4 {[%clk 00:25:44]} {[%emt 00:00:01]} Nf6
{[%clk 00:25:41]} {[%emt 00:00:03]} 5. Bd3 {[%clk 00:25:40]} {[%emt 00:00:14]}
Nc6 {[%clk 00:25:42]} {[%emt 00:00:08]} 6. Nxc6 {[%clk 00:25:43]} {[%emt
00:00:07]} bxc6 {[%clk 00:25:50]} {[%emt 00:00:02]} 7. Bg5 {[%clk 00:25:48]}
{[%emt 00:00:05]} Be7 {[%clk 00:25:47]} {[%emt 00:00:12]} 8. Nc3 {[%clk
00:25:42]} {[%emt 00:00:18]} O-O {[%clk 00:25:48]} {[%emt 00:00:09]} 9. O-O
{[%clk 00:25:35]} {[%emt 00:00:18]} h6 {[%clk 00:25:40]} {[%emt 00:00:18]} 10.
Bh4 {[%clk 00:25:38]} {[%emt 00:00:07]} Re8 {[%clk 00:25:30]} {[%emt 00:00:16]}
11. Kh1 {[%clk 00:25:06]} {[%emt 00:00:45]} Nxe4 {[%clk 00:21:37]} {[%emt
00:04:03]} 12. Bxe4 {[%clk 00:23:00]} {[%emt 00:02:17]} Bxh4 {[%clk 00:21:39]}
{[%emt 00:00:08]} 13. g3 {[%clk 00:22:13]} {[%emt 00:00:56]} Bf6 {[%clk
00:21:30]} {[%emt 00:00:19]} 14. Qe2 {[%clk 00:21:08]} {[%emt 00:01:16]} d5
{[%clk 00:21:09]} {[%emt 00:00:30]} 15. Bg2 {[%clk 00:20:55]} {[%emt 00:00:23]}
Qb6 {[%clk 00:20:48]} {[%emt 00:00:21]} 16. Rfb1 {[%clk 00:20:03]} {[%emt
00:01:11]} Rb8 {[%clk 00:20:05]} {[%emt 00:00:53]} 17. Re1 {[%clk 00:18:19]}
{[%emt 00:01:55]} Ba6 {[%clk 00:19:20]} {[%emt 00:00:55]} 18. Na4 {[%clk
00:16:46]} {[%emt 00:01:43]} Bxe2 {[%clk 00:16:57]} {[%emt 00:02:33]} 19. Nxb6
{[%clk 00:16:52]} {[%emt 00:00:04]} Rxb6 {[%clk 00:16:13]} {[%emt 00:00:53]} 20.
Rxe2 {[%clk 00:16:59]} {[%emt 00:00:04]} Rxb2 {[%clk 00:15:38]} {[%emt
00:00:45]} 21. h3 {[%clk 00:16:23]} {[%emt 00:00:47]} c5 {[%clk 00:14:45]}
{[%emt 00:01:00]} 22. Bxd5 {[%clk 00:16:09]} {[%emt 00:00:27]} Rc8 {[%clk
00:13:39]} {[%emt 00:01:14]} 23. Bg2 {[%clk 00:13:41]} {[%emt 00:02:39]} Rxc2
{[%clk 00:13:10]} {[%emt 00:00:40]} 24. Rxc2 {[%clk 00:13:49]} {[%emt
00:00:02]} Bxa1 {[%clk 00:13:15]} {[%emt 00:00:04]} 25. Bf1 {[%clk 00:13:37]}
{[%emt 00:00:22]} Bd4 {[%clk 00:13:17]} {[%emt 00:00:08]} 26. Bc4 {[%clk
00:13:39]} {[%emt 00:00:09]} Kf8 {[%clk 00:13:02]} {[%emt 00:00:24]} 27. Kg2
{[%clk 00:13:46]} {[%emt 00:00:06]} Ke7 {[%clk 00:13:08]} {[%emt 00:00:03]} 28.
f4 {[%clk 00:13:41]} {[%emt 00:00:15]} f6 {[%clk 00:12:42]} {[%emt 00:00:35]}
29. Kf3 {[%clk 00:13:48]} {[%emt 00:00:04]} e5 {[%clk 00:12:37]} {[%emt
00:00:15]} 30. Ke4 {[%clk 00:13:45]} {[%emt 00:00:13]} g6 {[%clk 00:11:58]}
{[%emt 00:00:48]} 31. f5 {[%clk 00:13:14]} {[%emt 00:00:42]} g5 {[%clk
00:11:34]} {[%emt 00:00:34]} 32. h4 {[%clk 00:12:02]} {[%emt 00:01:22]} Rb8
{[%clk 00:10:45]} {[%emt 00:00:58]} 33. Bb3 {[%clk 00:10:33]} {[%emt 00:01:40]}
Kd6 {[%clk 00:10:16]} {[%emt 00:00:38]} 34. hxg5 {[%clk 00:10:26]} {[%emt
00:00:17]} hxg5 {[%clk 00:10:18]} {[%emt 00:00:08]} 35. Rh2 {[%clk 00:10:29]}
{[%emt 00:00:07]} Rb4 {[%clk 00:09:36]} {[%emt 00:00:50]} 36. Kd3 {[%clk
00:09:56]} {[%emt 00:00:45]} e4+ {[%clk 00:08:49]} {[%emt 00:00:57]} 37. Kc2
{[%clk 00:09:34]} {[%emt 00:00:31]} Ke5 {[%clk 00:08:38]} {[%emt 00:00:15]} 38.
Rh7 {[%clk 00:09:08]} {[%emt 00:00:43]} Kxf5 {[%clk 00:08:12]} {[%emt
00:00:36]} 39. Rxa7 {[%clk 00:09:08]} {[%emt 00:00:10]} c4 {[%clk 00:07:17]}
{[%emt 00:01:05]} 40. Ra5+ {[%clk 00:09:13]} {[%emt 00:00:04]} Kg4 {[%clk
00:06:27]} {[%emt 00:01:01]} 41. Ba4 {[%clk 00:09:21]} {[%emt 00:00:02]} Rb2+
{[%clk 00:05:58]} {[%emt 00:00:36]} 42. Kd1 {[%clk 00:09:29]} {[%emt 00:00:04]}
Kxg3 {[%clk 00:05:25]} {[%emt 00:00:44]} 43. Rd5 {[%clk 00:08:12]} {[%emt
00:01:27]} Be5 {[%clk 00:04:36]} {[%emt 00:00:57]} 44. Bc2 {[%clk 00:08:20]}
{[%emt 00:00:04]} e3 {[%clk 00:04:36]} {[%emt 00:00:10]} 45. Be4 {[%clk
00:07:36]} {[%emt 00:00:41]} Kf2 {[%clk 00:04:00]} {[%emt 00:00:58]} 46. Kc1
{[%clk 00:06:49]} {[%emt 00:00:57]} e2 {[%clk 00:03:48]} {[%emt 00:00:23]} 47.
Rxe5 {[%clk 00:06:57]} {[%emt 00:00:02]} fxe5 {[%clk 00:03:02]} {[%emt
00:00:56]} 48. Kxb2 {[%clk 00:07:05]} {[%emt 00:00:02]} e1=Q {[%clk 00:03:06]}
{[%emt 00:00:03]} 49. Bc2 {[%clk 00:07:13]} {[%emt 00:00:06]} Qb4+ {[%clk
00:03:09]} {[%emt 00:00:05]} 50. Kc1 {[%clk 00:07:21]} {[%emt 00:00:03]} g4
{[%clk 00:03:14]} {[%emt 00:00:05]} 51. a4 {[%clk 00:07:28]} {[%emt 00:00:02]}
g3 {[%clk 00:03:16]} {[%emt 00:00:09]} 52. Be4 {[%clk 00:07:37]} Qxa4 {[%clk
00:03:11]} {[%emt 00:00:15]} 53. Kd2 {[%clk 00:07:41]} {[%emt 00:00:05]} Qb3
{[%clk 00:03:07]} {[%emt 00:00:11]} 54. Bc2 {[%clk 00:07:45]} {[%emt 00:00:10]}
Qe3+ {[%clk 00:02:53]} {[%emt 00:00:18]} 55. Kd1 {[%clk 00:07:45]} {[%emt
00:00:16]} Qe1# {[%clk 00:02:58]} {[%emt 00:00:04]} 0-1



[ePGN "0.1;DGT LiveChess/2.2.6"]

[Event "MČR družstev mladších žáků 2024"]
[Site "Harrachov, Czech Republic"]
[Date "2024.06.15"]
[Round "3.15"]
[White "Najdkova Laura"]
[Black "Moravec Rene"]
[Result "0-1"]
[TimeControl "25+10"]
[WhiteFideId "23751290"]
[BlackFideId "23745274"]
[WhiteElo "1337"]
[BlackElo "1295"]

1. e4 {[%clk 00:25:18]} {[%emt 00:00:02]} c5 {[%clk 00:25:18]} {[%emt
00:00:02]} 2. Nf3 {[%clk 00:25:26]} {[%emt 00:00:02]} Nc6 {[%clk 00:25:25]}
{[%emt 00:00:03]} 3. d4 {[%clk 00:25:35]} {[%emt 00:00:02]} cxd4 {[%clk
00:25:28]} {[%emt 00:00:07]} 4. Nxd4 {[%clk 00:25:44]} {[%emt 00:00:01]} g6
{[%clk 00:25:29]} {[%emt 00:00:08]} 5. Nc3 {[%clk 00:25:50]} {[%emt 00:00:04]}
Bg7 {[%clk 00:25:38]} {[%emt 00:00:02]} 6. Be3 {[%clk 00:25:54]} {[%emt
00:00:07]} Nf6 {[%clk 00:25:29]} {[%emt 00:00:18]} 7. Be2 {[%clk 00:25:58]}
{[%emt 00:00:07]} d6 {[%clk 00:25:33]} {[%emt 00:00:05]} 8. O-O {[%clk
00:25:48]} {[%emt 00:00:20]} O-O {[%clk 00:25:33]} {[%emt 00:00:10]} 9. f4
{[%clk 00:25:40]} {[%emt 00:00:18]} Bd7 {[%clk 00:23:57]} {[%emt 00:01:46]} 10.
Kh1 {[%clk 00:25:29]} {[%emt 00:00:22]} Qc8 {[%clk 00:23:47]} {[%emt 00:00:19]}
11. Qe1 {[%clk 00:25:23]} {[%emt 00:00:17]} Bg4 {[%clk 00:23:37]} {[%emt
00:00:18]} 12. Qh4 {[%clk 00:18:19]} {[%emt 00:07:15]} Bxe2 {[%clk 00:21:36]}
{[%emt 00:02:11]} 13. Ncxe2 {[%clk 00:18:28]} {[%emt 00:00:02]} Ng4 {[%clk
00:20:04]} {[%emt 00:01:33]} 14. Nxc6 {[%clk 00:17:23]} {[%emt 00:01:24]} Qxc6
{[%clk 00:18:56]} {[%emt 00:01:15]} 15. Qxg4 {[%clk 00:17:22]} {[%emt
00:00:13]} Qxe4 {[%clk 00:17:17]} {[%emt 00:01:50]} 16. Bg1 {[%clk 00:08:32]}
{[%emt 00:09:01]} Rfc8 {[%clk 00:16:35]} {[%emt 00:00:50]} 17. c3 {[%clk
00:07:59]} {[%emt 00:00:45]} Qc2 {[%clk 00:13:10]} {[%emt 00:03:32]} 18. Bxa7
{[%clk 00:05:09]} {[%emt 00:03:02]} f5 {[%clk 00:11:07]} {[%emt 00:02:11]} 19.
Qf3 {[%clk 00:03:15]} {[%emt 00:02:06]} Rxa7 {[%clk 00:10:21]} {[%emt
00:00:56]} 20. Qe3 {[%clk 00:03:13]} {[%emt 00:00:12]} Raa8 {[%clk 00:09:01]}
{[%emt 00:01:29]} 21. Nd4 {[%clk 00:01:09]} {[%emt 00:02:15]} Qe4 {[%clk
00:05:34]} {[%emt 00:03:35]} 22. Qxe4 {[%clk 00:00:26]} {[%emt 00:00:54]} fxe4
{[%clk 00:05:42]} {[%emt 00:00:03]} 23. Rfe1 {[%clk 00:00:29]} {[%emt
00:00:08]} Bxd4 {[%clk 00:05:32]} {[%emt 00:00:19]} 24. cxd4 {[%clk 00:00:37]}
{[%emt 00:00:02]} d5 {[%clk 00:05:39]} {[%emt 00:00:02]} 25. Kg1 {[%clk
00:00:41]} {[%emt 00:00:07]} Rc2 {[%clk 00:05:34]} {[%emt 00:00:13]} 26. Rec1
{[%clk 00:00:15]} {[%emt 00:00:38]} Rac8 {[%clk 00:05:41]} {[%emt 00:00:03]} 27.
Rxc2 {[%clk 00:00:22]} {[%emt 00:00:03]} Rxc2 {[%clk 00:05:50]} {[%emt
00:00:01]} 28. b3 {[%clk 00:00:16]} {[%emt 00:00:16]} Kf8 {[%clk 00:05:22]}
{[%emt 00:00:37]} 0-1



[ePGN "0.1;DGT LiveChess/2.2.6"]